[Event "*** Titled Tuesday Blitz"]
[Site "Chess.com"]
[Date "2020.04.28"]
[Round "3"]
[White "IngOscarArdila"]
[Black "Training_Day"]
[Result "0-1"]
[WhiteElo "2038"]
[BlackElo "2300"]
[TimeControl "180+1"]
[EndTime "10:27:46 PDT"]
[Termination "Training_Day won by resignation"]

1. d4 {[%clk 0:03:00.9]} 1... Nf6 {[%clk 0:02:59.7]} 2. c4 {[%clk 0:03:00.7]}
2... e6 {[%clk 0:03:00.1]} 3. Nc3 {[%clk 0:03:00.7]} 3... Bb4 {[%clk 0:02:59.8]}
4. Bd2 {[%clk 0:03:01]} 4... O-O {[%clk 0:02:59]} 5. Nf3 {[%clk 0:03:00.9]} 5...
d5 {[%clk 0:02:59]} 6. e3 {[%clk 0:02:59.7]} 6... c5 {[%clk 0:02:58.5]} 7. a3
{[%clk 0:02:57.5]} 7... Bxc3 {[%clk 0:02:48.5]} 8. bxc3 {[%clk 0:02:58.4]} 8...
Nbd7 {[%clk 0:02:39.1]} 9. cxd5 {[%clk 0:02:55.2]} 9... exd5 {[%clk 0:02:35.4]}
10. Bd3 {[%clk 0:02:53.6]} 10... Re8 {[%clk 0:02:33.8]} 11. O-O {[%clk
0:02:52.9]} 11... c4 {[%clk 0:02:25.4]} 12. Bb1 {[%clk 0:02:41.9]} 12... Ne4
{[%clk 0:02:25.3]} 13. Be1 {[%clk 0:02:38.9]} 13... b5 {[%clk 0:02:08.3]} 14.
Qc2 {[%clk 0:02:38]} 14... Nf8 {[%clk 0:01:52.9]} 15. Nd2 {[%clk 0:02:36.4]}
15... Bf5 {[%clk 0:01:52.6]} 16. Qb2 {[%clk 0:02:21.5]} 16... Nxd2 {[%clk
0:01:42.9]} 17. Bxd2 {[%clk 0:02:21.3]} 17... Bxb1 {[%clk 0:01:42.2]} 18. Raxb1
{[%clk 0:02:22.2]} 18... Rb8 {[%clk 0:01:37.5]} 19. Qb4 {[%clk 0:02:19.4]} 19...
a5 {[%clk 0:01:30.7]} 20. Qc5 {[%clk 0:02:17.9]} 20... Ne6 {[%clk 0:01:29.6]}
21. Qc6 {[%clk 0:02:15.7]} 21... Rb6 {[%clk 0:01:27.7]} 22. Qxb6 {[%clk
0:02:05.1]} 22... Qxb6 {[%clk 0:01:26.6]} 23. f3 {[%clk 0:02:05.6]} 23... Ng5
{[%clk 0:01:21.9]} 24. Kf2 {[%clk 0:02:05]} 24... f5 {[%clk 0:01:11]} 25. h4
{[%clk 0:02:04.6]} 25... Nf7 {[%clk 0:01:10.1]} 26. Rb2 {[%clk 0:02:03]} 26...
Rb8 {[%clk 0:00:58.1]} 27. Rfb1 {[%clk 0:02:02.1]} 27... Nd6 {[%clk 0:00:57.9]}
28. Ke2 {[%clk 0:02:01.6]} 28... Qd8 {[%clk 0:00:57.3]} 29. Be1 {[%clk
0:01:59.9]} 29... Qe7 {[%clk 0:00:46.8]} 30. Bg3 {[%clk 0:01:59.2]} 30... h6
{[%clk 0:00:45.7]} 31. Be5 {[%clk 0:01:44.8]} 31... Re8 {[%clk 0:00:40.1]} 32.
g3 {[%clk 0:01:32.3]} 32... Nf7 {[%clk 0:00:26.3]} 33. f4 {[%clk 0:01:32.2]}
33... Nxe5 {[%clk 0:00:24.5]} 34. dxe5 {[%clk 0:01:32.3]} 34... Qxa3 {[%clk
0:00:24.9]} 35. Rxb5 {[%clk 0:01:31]} 35... Qxc3 {[%clk 0:00:24.4]} 36. Kf3
{[%clk 0:01:30.2]} 36... d4 {[%clk 0:00:23.3]} 0-1

[Event "*** Titled Tuesday Blitz"]
[Site "Chess.com"]
[Date "2020.04.28"]
[Round "3"]
[White "tufferguy"]
[Black "chessdjw"]
[Result "0-1"]
[WhiteElo "2391"]
[BlackElo "2596"]
[TimeControl "180+1"]
[EndTime "10:27:48 PDT"]
[Termination "chessdjw won on time"]

1. e4 {[%clk 0:03:00.9]} 1... c5 {[%clk 0:02:59.5]} 2. c3 {[%clk 0:03:00.8]}
2... Nf6 {[%clk 0:02:58.8]} 3. e5 {[%clk 0:03:01.2]} 3... Nd5 {[%clk 0:02:59.4]}
4. Nf3 {[%clk 0:03:01.5]} 4... Nc6 {[%clk 0:02:58]} 5. d4 {[%clk 0:03:01.3]}
5... cxd4 {[%clk 0:02:56.8]} 6. Bc4 {[%clk 0:03:01.7]} 6... Nb6 {[%clk
0:02:55.9]} 7. Bb3 {[%clk 0:03:01.9]} 7... d5 {[%clk 0:02:56.6]} 8. exd6 {[%clk
0:03:01.4]} 8... Qxd6 {[%clk 0:02:56.2]} 9. O-O {[%clk 0:02:55.5]} 9... Be6
{[%clk 0:02:51.1]} 10. Bxe6 {[%clk 0:02:34.6]} 10... Qxe6 {[%clk 0:02:52]} 11.
Nxd4 {[%clk 0:02:34.9]} 11... Nxd4 {[%clk 0:02:51.8]} 12. Qxd4 {[%clk
0:02:35.4]} 12... Rd8 {[%clk 0:02:52.2]} 13. Qe3 {[%clk 0:02:28.4]} 13... Qxe3
{[%clk 0:02:49.9]} 14. Bxe3 {[%clk 0:02:29.3]} 14... Nc4 {[%clk 0:02:39]} 15.
Bd4 {[%clk 0:01:27.4]} 15... e5 {[%clk 0:02:29.7]} 16. Bxa7 {[%clk 0:01:25.1]}
16... Nxb2 {[%clk 0:02:29.6]} 17. Be3 {[%clk 0:01:21.2]} 17... Nc4 {[%clk
0:02:24.3]} 18. a4 {[%clk 0:01:06.7]} 18... Nxe3 {[%clk 0:02:23.3]} 19. fxe3
{[%clk 0:01:06.3]} 19... Bc5 {[%clk 0:02:23.8]} 20. Kf2 {[%clk 0:01:06.3]} 20...
Rd3 {[%clk 0:02:23.4]} 21. Re1 {[%clk 0:00:45]} 21... Ke7 {[%clk 0:02:20]} 22.
Na3 {[%clk 0:00:25.1]} 22... Rxc3 {[%clk 0:02:05.7]} 23. Nb5 {[%clk 0:00:21.2]}
23... Rd3 {[%clk 0:02:03.3]} 24. Rac1 {[%clk 0:00:19.5]} 24... Bb6 {[%clk
0:01:21.3]} 25. Rb1 {[%clk 0:00:09.1]} 25... Rc8 {[%clk 0:01:17]} 0-1

[Event "*** Titled Tuesday Blitz"]
[Site "Chess.com"]
[Date "2020.04.28"]
[Round "3"]
[White "Trickov"]
[Black "GracefulYear"]
[Result "1-0"]
[WhiteElo "2276"]
[BlackElo "2458"]
[TimeControl "180+1"]
[EndTime "10:27:50 PDT"]
[Termination "Trickov won by checkmate"]

1. d4 {[%clk 0:03:00.9]} 1... g6 {[%clk 0:02:59.8]} 2. Nf3 {[%clk 0:03:01.4]}
2... Bg7 {[%clk 0:03:00.1]} 3. g3 {[%clk 0:03:02]} 3... b6 {[%clk 0:03:00.5]} 4.
Bg2 {[%clk 0:03:02.3]} 4... Bb7 {[%clk 0:03:00.9]} 5. O-O {[%clk 0:03:02.9]}
5... d6 {[%clk 0:03:01]} 6. c4 {[%clk 0:03:03.5]} 6... Nd7 {[%clk 0:03:01]} 7.
Nc3 {[%clk 0:03:02.8]} 7... Ngf6 {[%clk 0:03:01.2]} 8. Qc2 {[%clk 0:03:01.9]}
8... O-O {[%clk 0:03:00.1]} 9. e4 {[%clk 0:03:01.2]} 9... e5 {[%clk 0:03:00]}
10. h3 {[%clk 0:03:01]} 10... exd4 {[%clk 0:02:58.9]} 11. Nxd4 {[%clk
0:03:00.3]} 11... Re8 {[%clk 0:02:58.8]} 12. Rd1 {[%clk 0:02:58.8]} 12... Qe7
{[%clk 0:02:55.6]} 13. Nd5 {[%clk 0:02:32.9]} 13... Qd8 {[%clk 0:02:38.2]} 14.
Be3 {[%clk 0:02:27.1]} 14... Nc5 {[%clk 0:02:33.4]} 15. f3 {[%clk 0:02:17.1]}
15... Nxd5 {[%clk 0:02:30]} 16. cxd5 {[%clk 0:02:15.7]} 16... f5 {[%clk
0:02:27.7]} 17. b4 {[%clk 0:02:11.6]} 17... Nd7 {[%clk 0:02:19.7]} 18. Ne6
{[%clk 0:02:08.5]} 18... Rxe6 {[%clk 0:01:25.5]} 19. dxe6 {[%clk 0:02:06.2]}
19... Ne5 {[%clk 0:01:22.3]} 20. f4 {[%clk 0:01:55.7]} 20... Nc6 {[%clk
0:01:19.5]} 21. exf5 {[%clk 0:01:49.3]} 21... Nxb4 {[%clk 0:01:17]} 22. Qb3
{[%clk 0:01:47.9]} 22... Bxg2 {[%clk 0:01:16.1]} 23. e7+ {[%clk 0:01:46.5]}
23... Bd5 {[%clk 0:01:09.5]} 24. exd8=Q+ {[%clk 0:01:45.8]} 24... Rxd8 {[%clk
0:01:10.4]} 25. Rxd5 {[%clk 0:01:44.5]} 25... Nxd5 {[%clk 0:01:09.9]} 26. Qxd5+
{[%clk 0:01:44.6]} 26... Kf8 {[%clk 0:01:09.2]} 27. Bd4 {[%clk 0:01:42.4]} 27...
c6 {[%clk 0:01:09]} 28. Bxg7+ {[%clk 0:01:39.6]} 28... Kxg7 {[%clk 0:01:09.9]}
29. Qxc6 {[%clk 0:01:39.6]} 29... gxf5 {[%clk 0:01:09]} 30. Rd1 {[%clk
0:01:38.2]} 30... d5 {[%clk 0:01:08]} 31. Rxd5 {[%clk 0:01:37.2]} 31... Rf8
{[%clk 0:01:07.1]} 32. Rd7+ {[%clk 0:01:36.4]} 32... Kg8 {[%clk 0:01:06]} 33.
Qe6+ {[%clk 0:01:35.5]} 33... Kh8 {[%clk 0:01:05.7]} 34. Qe5+ {[%clk 0:01:35.5]}
34... Rf6 {[%clk 0:01:04.9]} 35. Qxf6+ {[%clk 0:01:34.8]} 35... Kg8 {[%clk
0:01:05.8]} 36. Qxf5 {[%clk 0:01:34.5]} 36... Kh8 {[%clk 0:01:06.7]} 37. Qf6+
{[%clk 0:01:34.4]} 37... Kg8 {[%clk 0:01:07.6]} 38. Qc6 {[%clk 0:01:33.9]} 38...
Kh8 {[%clk 0:01:08.5]} 39. Qb7 {[%clk 0:01:33.8]} 39... Kg8 {[%clk 0:01:09.4]}
40. Qxa7 {[%clk 0:01:34]} 40... Kh8 {[%clk 0:01:10.3]} 41. Qxb6 {[%clk
0:01:33.2]} 41... Kg8 {[%clk 0:01:11.2]} 42. a4 {[%clk 0:01:33.6]} 42... Kh8
{[%clk 0:01:12.1]} 43. a5 {[%clk 0:01:33.6]} 43... Kg8 {[%clk 0:01:13]} 44. a6
{[%clk 0:01:34]} 44... Kh8 {[%clk 0:01:13.9]} 45. a7 {[%clk 0:01:34.3]} 45...
Kg8 {[%clk 0:01:14.8]} 46. Qc6 {[%clk 0:01:34.6]} 46... Kh8 {[%clk 0:01:15.7]}
47. g4 {[%clk 0:01:34.8]} 47... Kg8 {[%clk 0:01:16.6]} 48. h4 {[%clk 0:01:35.1]}
48... Kh8 {[%clk 0:01:17.5]} 49. h5 {[%clk 0:01:33]} 49... Kg8 {[%clk
0:01:18.4]} 50. g5 {[%clk 0:01:32.1]} 50... Kh8 {[%clk 0:01:19.3]} 51. f5 {[%clk
0:01:32.8]} 51... Kg8 {[%clk 0:01:20.2]} 52. h6 {[%clk 0:01:32.6]} 52... Kh8
{[%clk 0:01:21.1]} 53. g6 {[%clk 0:01:32]} 53... Kg8 {[%clk 0:01:22]} 54. Qe6+
{[%clk 0:01:29.1]} 54... Kh8 {[%clk 0:01:22.9]} 55. g7# {[%clk 0:01:29]} 1-0

[Event "*** Titled Tuesday Blitz"]
[Site "Chess.com"]
[Date "2020.04.28"]
[Round "3"]
[White "lelya96"]
[Black "DonBroca"]
[Result "0-1"]
[WhiteElo "2281"]
[BlackElo "2043"]
[TimeControl "180+1"]
[EndTime "10:27:50 PDT"]
[Termination "DonBroca won by resignation"]

1. e4 {[%clk 0:03:00.9]} 1... c5 {[%clk 0:03:00.9]} 2. Nf3 {[%clk 0:02:59.2]}
2... d6 {[%clk 0:02:51.9]} 3. d4 {[%clk 0:02:58.8]} 3... cxd4 {[%clk 0:02:52.8]}
4. Nxd4 {[%clk 0:02:58.9]} 4... Nf6 {[%clk 0:02:52.8]} 5. Nc3 {[%clk 0:02:58.8]}
5... g6 {[%clk 0:02:53.2]} 6. Be2 {[%clk 0:02:58.1]} 6... Bg7 {[%clk 0:02:54.1]}
7. O-O {[%clk 0:02:55.7]} 7... O-O {[%clk 0:02:47.2]} 8. Bg5 {[%clk 0:02:54.2]}
8... Nc6 {[%clk 0:02:42]} 9. Re1 {[%clk 0:02:48.5]} 9... Bd7 {[%clk 0:02:34.4]}
10. Nb3 {[%clk 0:02:48.1]} 10... Rc8 {[%clk 0:02:30.8]} 11. Rb1 {[%clk
0:02:47.5]} 11... Na5 {[%clk 0:02:29.2]} 12. Bxf6 {[%clk 0:02:44.6]} 12... Bxf6
{[%clk 0:02:28.3]} 13. Nd5 {[%clk 0:02:45.3]} 13... Bg7 {[%clk 0:02:27.5]} 14.
Bf1 {[%clk 0:02:43]} 14... Nxb3 {[%clk 0:02:24.9]} 15. axb3 {[%clk 0:02:42]}
15... e6 {[%clk 0:02:18.7]} 16. Ne3 {[%clk 0:02:35.2]} 16... Qb6 {[%clk
0:02:18.4]} 17. Nc4 {[%clk 0:02:34.3]} 17... Qc5 {[%clk 0:02:02.8]} 18. Qxd6
{[%clk 0:02:31.5]} 18... Qxd6 {[%clk 0:02:01.2]} 19. Nxd6 {[%clk 0:02:30.1]}
19... Rxc2 {[%clk 0:02:01.5]} 20. Nxb7 {[%clk 0:02:20]} 20... Rb8 {[%clk
0:01:48.2]} 21. Ba6 {[%clk 0:02:14]} 21... Bxb2 {[%clk 0:01:44.5]} 22. b4 {[%clk
0:01:55.1]} 22... Bd4 {[%clk 0:01:38.8]} 23. Rf1 {[%clk 0:01:49.7]} 23... Bc6
{[%clk 0:01:36.9]} 24. Na5 {[%clk 0:01:48.7]} 24... Bxe4 {[%clk 0:01:35.2]} 25.
Rbd1 {[%clk 0:01:31.6]} 25... Bc3 {[%clk 0:01:11.1]} 26. Nc4 {[%clk 0:01:15.9]}
26... Bxb4 {[%clk 0:01:03.5]} 27. Ne3 {[%clk 0:01:15.5]} 27... Rb2 {[%clk
0:00:58.2]} 28. Rc1 {[%clk 0:01:12.5]} 28... Bd2 {[%clk 0:00:56.3]} 29. Rc4
{[%clk 0:00:57.9]} 29... Bd3 {[%clk 0:00:44.9]} 30. Rd1 {[%clk 0:00:55.6]} 30...
Bxc4 {[%clk 0:00:40.6]} 31. Nxc4 {[%clk 0:00:55.8]} 31... Rb1 {[%clk 0:00:37.2]}
0-1

[Event "*** Titled Tuesday Blitz"]
[Site "Chess.com"]
[Date "2020.04.28"]
[Round "3"]
[White "ehrenfeld"]
[Black "H3nriqueTV"]
[Result "1-0"]
[WhiteElo "2492"]
[BlackElo "2151"]
[TimeControl "180+1"]
[EndTime "10:27:52 PDT"]
[Termination "ehrenfeld won by resignation"]

1. e4 {[%clk 0:03:00.9]} 1... c5 {[%clk 0:02:57.3]} 2. d3 {[%clk 0:02:59.9]}
2... b6 {[%clk 0:02:57.2]} 3. f4 {[%clk 0:02:59.2]} 3... Bb7 {[%clk 0:02:57.7]}
4. Nf3 {[%clk 0:02:59.4]} 4... e6 {[%clk 0:02:57.9]} 5. g3 {[%clk 0:02:58.1]}
5... d5 {[%clk 0:02:58]} 6. Qe2 {[%clk 0:02:56.3]} 6... Nf6 {[%clk 0:02:56.6]}
7. e5 {[%clk 0:02:55.9]} 7... Nfd7 {[%clk 0:02:55.2]} 8. Bg2 {[%clk 0:02:55.9]}
8... Nc6 {[%clk 0:02:56.1]} 9. O-O {[%clk 0:02:55.7]} 9... Be7 {[%clk
0:02:55.6]} 10. c4 {[%clk 0:02:55.7]} 10... dxc4 {[%clk 0:02:52.5]} 11. dxc4
{[%clk 0:02:55.3]} 11... Qc7 {[%clk 0:02:52.9]} 12. Nc3 {[%clk 0:02:55]} 12...
O-O-O {[%clk 0:02:46.8]} 13. Be3 {[%clk 0:02:52.2]} 13... h5 {[%clk 0:02:43.4]}
14. h3 {[%clk 0:02:47.5]} 14... Nf8 {[%clk 0:02:36.3]} 15. Rad1 {[%clk
0:02:42.4]} 15... Ng6 {[%clk 0:02:34.8]} 16. a3 {[%clk 0:02:32.2]} 16... a6
{[%clk 0:02:33]} 17. Ne4 {[%clk 0:02:19.5]} 17... Nd4 {[%clk 0:02:16.3]} 18.
Nxd4 {[%clk 0:02:17.6]} 18... cxd4 {[%clk 0:02:17.2]} 19. Rxd4 {[%clk
0:02:12.2]} 19... f5 {[%clk 0:02:04.2]} 20. Nd6+ {[%clk 0:01:51.8]} 20... Bxd6
{[%clk 0:01:59.5]} 21. exd6 {[%clk 0:01:51.7]} 21... Qd7 {[%clk 0:02:00.2]} 22.
Rd2 {[%clk 0:01:30.4]} 22... h4 {[%clk 0:01:49.2]} 23. Bxb6 {[%clk 0:01:25.9]}
23... hxg3 {[%clk 0:01:49.4]} 24. Bxd8 {[%clk 0:01:22.6]} 24... Kxd8 {[%clk
0:01:49.6]} 25. c5 {[%clk 0:01:00.8]} 25... Nh4 {[%clk 0:01:39.6]} 26. Bxb7
{[%clk 0:00:47.7]} 26... Qxb7 {[%clk 0:01:39.3]} 27. Rc2 {[%clk 0:00:18]} 27...
Qc6 {[%clk 0:01:33.3]} 28. Rc3 {[%clk 0:00:17.7]} 28... g2 {[%clk 0:01:30.4]}
29. Rf2 {[%clk 0:00:17.7]} 29... Ng6 {[%clk 0:01:21.6]} 30. Qf3 {[%clk
0:00:17.3]} 30... Qb6 {[%clk 0:01:10.9]} 31. cxb6 {[%clk 0:00:17]} 1-0

[Event "*** Titled Tuesday Blitz"]
[Site "Chess.com"]
[Date "2020.04.28"]
[Round "3"]
[White "Sanyura"]
[Black "VincentKeymer"]
[Result "0-1"]
[WhiteElo "2488"]
[BlackElo "2726"]
[TimeControl "180+1"]
[EndTime "10:27:53 PDT"]
[Termination "VincentKeymer won on time"]

1. e4 {[%clk 0:03:00.9]} 1... e6 {[%clk 0:02:58.4]} 2. d4 {[%clk 0:02:59.3]}
2... d5 {[%clk 0:02:58.5]} 3. Nc3 {[%clk 0:02:57.6]} 3... Bb4 {[%clk 0:02:57.5]}
4. e5 {[%clk 0:02:57.5]} 4... c5 {[%clk 0:02:56.9]} 5. Bd2 {[%clk 0:02:57.6]}
5... Ne7 {[%clk 0:02:55.4]} 6. Nb5 {[%clk 0:02:57.4]} 6... Bxd2+ {[%clk
0:02:54.2]} 7. Qxd2 {[%clk 0:02:58.3]} 7... O-O {[%clk 0:02:54.4]} 8. f4 {[%clk
0:02:50.4]} 8... Nbc6 {[%clk 0:02:50.2]} 9. Nf3 {[%clk 0:02:50.3]} 9... Bd7
{[%clk 0:02:48.2]} 10. Nd6 {[%clk 0:02:48.3]} 10... cxd4 {[%clk 0:02:43.9]} 11.
Bd3 {[%clk 0:02:48.2]} 11... f6 {[%clk 0:02:25.6]} 12. O-O {[%clk 0:02:17.3]}
12... Nc8 {[%clk 0:02:18.8]} 13. Nxc8 {[%clk 0:00:54.7]} 13... Rxc8 {[%clk
0:02:17.4]} 14. exf6 {[%clk 0:00:53.8]} 14... Rxf6 {[%clk 0:02:07.2]} 15. Ng5
{[%clk 0:00:52.9]} 15... h6 {[%clk 0:02:03.4]} 16. Bh7+ {[%clk 0:00:46.5]} 16...
Kh8 {[%clk 0:01:51.5]} 17. Bd3 {[%clk 0:00:22.2]} 17... hxg5 {[%clk 0:01:50.1]}
18. fxg5 {[%clk 0:00:23.1]} 18... Rxf1+ {[%clk 0:01:44.1]} 19. Rxf1 {[%clk
0:00:24]} 19... Ne5 {[%clk 0:01:29.6]} 20. Rf4 {[%clk 0:00:01.9]} 20... Kg8
{[%clk 0:01:10.1]} 21. Qf2 {[%clk 0:00:01.3]} 21... Qxg5 {[%clk 0:01:06.1]} 0-1

[Event "*** Titled Tuesday Blitz"]
[Site "Chess.com"]
[Date "2020.04.28"]
[Round "3"]
[White "LuckSlayeer"]
[Black "semchik73"]
[Result "1-0"]
[WhiteElo "2509"]
[BlackElo "2232"]
[TimeControl "180+1"]
[EndTime "10:27:53 PDT"]
[Termination "LuckSlayeer won by resignation"]

1. e4 {[%clk 0:02:59.4]} 1... Nf6 {[%clk 0:03:00.1]} 2. e5 {[%clk 0:02:59.5]}
2... Nd5 {[%clk 0:03:00.2]} 3. c4 {[%clk 0:02:59.4]} 3... Nb6 {[%clk 0:03:00.1]}
4. d4 {[%clk 0:03:00]} 4... d6 {[%clk 0:02:59.9]} 5. exd6 {[%clk 0:03:00.9]}
5... cxd6 {[%clk 0:02:59.1]} 6. Nc3 {[%clk 0:03:01]} 6... g6 {[%clk 0:02:59.4]}
7. d5 {[%clk 0:03:00.9]} 7... Bg7 {[%clk 0:02:59.6]} 8. Nf3 {[%clk 0:03:00.8]}
8... O-O {[%clk 0:02:59.6]} 9. Be3 {[%clk 0:03:01.1]} 9... f5 {[%clk 0:02:51.8]}
10. Be2 {[%clk 0:02:57.8]} 10... N8d7 {[%clk 0:02:49.7]} 11. O-O {[%clk
0:02:52.6]} 11... Ne5 {[%clk 0:02:48.5]} 12. Nxe5 {[%clk 0:02:52.9]} 12... dxe5
{[%clk 0:02:48.4]} 13. f4 {[%clk 0:02:49.3]} 13... exf4 {[%clk 0:02:43.7]} 14.
Bxf4 {[%clk 0:02:42.2]} 14... e5 {[%clk 0:02:43.6]} 15. Be3 {[%clk 0:02:13.9]}
15... f4 {[%clk 0:02:41.4]} 16. Bf2 {[%clk 0:02:11.9]} 16... Bf5 {[%clk
0:02:40.7]} 17. c5 {[%clk 0:02:10.8]} 17... Nd7 {[%clk 0:02:39.8]} 18. Bd3
{[%clk 0:02:08.5]} 18... Rc8 {[%clk 0:02:33.4]} 19. Bxf5 {[%clk 0:02:06.5]}
19... Rxf5 {[%clk 0:02:32]} 20. Ne4 {[%clk 0:02:04.9]} 20... Nf6 {[%clk
0:02:25.7]} 21. Nd6 {[%clk 0:02:04.8]} 21... e4 {[%clk 0:02:22.6]} 22. Nxf5
{[%clk 0:02:03.2]} 22... gxf5 {[%clk 0:02:22.4]} 23. d6 {[%clk 0:01:29.1]} 23...
e3 {[%clk 0:02:21.8]} 24. Bh4 {[%clk 0:01:28.4]} 24... Rxc5 {[%clk 0:02:20.6]}
25. Rxf4 {[%clk 0:01:28.2]} 25... Rd5 {[%clk 0:02:19.1]} 26. Qxd5+ {[%clk
0:01:25.8]} 26... Nxd5 {[%clk 0:02:15.1]} 27. Bxd8 {[%clk 0:01:26.5]} 27... Nxf4
{[%clk 0:02:15.6]} 28. d7 {[%clk 0:01:21.2]} 28... e2 {[%clk 0:02:14.7]} 29. Be7
{[%clk 0:00:57.5]} 29... Bd4+ {[%clk 0:02:14]} 30. Kh1 {[%clk 0:00:57.9]} 30...
Ne6 {[%clk 0:01:55.5]} 31. Re1 {[%clk 0:00:42.7]} 31... Kf7 {[%clk 0:01:54.4]}
32. d8=Q {[%clk 0:00:41.8]} 32... Nxd8 {[%clk 0:01:54.7]} 33. Bxd8 {[%clk
0:00:42.7]} 33... Bxb2 {[%clk 0:01:53.6]} 34. Rxe2 {[%clk 0:00:42.9]} 34... Bd4
{[%clk 0:01:54.1]} 35. Rd2 {[%clk 0:00:41.6]} 35... Bc5 {[%clk 0:01:53.3]} 36.
Bg5 {[%clk 0:00:38.6]} 36... Ke6 {[%clk 0:01:53]} 37. Bf4 {[%clk 0:00:38.1]}
37... b5 {[%clk 0:01:52.8]} 38. Rb2 {[%clk 0:00:37.5]} 38... a6 {[%clk
0:01:52.4]} 39. g3 {[%clk 0:00:34.4]} 39... Bd4 {[%clk 0:01:52.6]} 40. Rd2
{[%clk 0:00:33.4]} 40... Bc5 {[%clk 0:01:52.5]} 41. Kg2 {[%clk 0:00:33.3]} 41...
a5 {[%clk 0:01:52.7]} 42. Kf3 {[%clk 0:00:33.3]} 42... b4 {[%clk 0:01:53.1]} 43.
Rc2 {[%clk 0:00:33.4]} 43... Bd4 {[%clk 0:01:52.3]} 44. Rc6+ {[%clk 0:00:32.8]}
44... Kd5 {[%clk 0:01:51.5]} 45. Ra6 {[%clk 0:00:33.3]} 45... Bc3 {[%clk
0:01:47.6]} 46. Rxa5+ {[%clk 0:00:33.1]} 46... Kc4 {[%clk 0:01:48.2]} 47. Rxf5
{[%clk 0:00:33.2]} 47... Kd4 {[%clk 0:01:47.3]} 48. Be5+ {[%clk 0:00:32.8]}
48... Kc4 {[%clk 0:01:47.4]} 49. Bxc3 {[%clk 0:00:30.1]} 49... bxc3 {[%clk
0:01:47.5]} 50. Ke2 {[%clk 0:00:28.5]} 1-0

[Event "*** Titled Tuesday Blitz"]
[Site "Chess.com"]
[Date "2020.04.28"]
[Round "3"]
[White "GMSrinath"]
[Black "pooh2012"]
[Result "1-0"]
[WhiteElo "2745"]
[BlackElo "2519"]
[TimeControl "180+1"]
[EndTime "10:27:54 PDT"]
[Termination "GMSrinath won by resignation"]

1. e4 {[%clk 0:03:00.9]} 1... d6 {[%clk 0:03:00.9]} 2. d4 {[%clk 0:02:58.7]}
2... Nd7 {[%clk 0:03:01.8]} 3. Nc3 {[%clk 0:02:59.1]} 3... c6 {[%clk 0:03:02.3]}
4. Nf3 {[%clk 0:02:57.8]} 4... Qc7 {[%clk 0:03:02.6]} 5. h3 {[%clk 0:02:58.3]}
5... e5 {[%clk 0:03:01.2]} 6. Be3 {[%clk 0:02:58.9]} 6... Be7 {[%clk 0:03:01]}
7. Be2 {[%clk 0:02:59]} 7... Ngf6 {[%clk 0:03:01.1]} 8. a4 {[%clk 0:02:58.7]}
8... a5 {[%clk 0:02:59.3]} 9. O-O {[%clk 0:02:58.7]} 9... O-O {[%clk 0:02:58.8]}
10. Re1 {[%clk 0:02:59.3]} 10... Re8 {[%clk 0:02:54.6]} 11. Bf1 {[%clk
0:02:58.3]} 11... Nf8 {[%clk 0:02:53.7]} 12. dxe5 {[%clk 0:02:44.6]} 12... dxe5
{[%clk 0:02:50.2]} 13. Nh4 {[%clk 0:02:45.1]} 13... Nxe4 {[%clk 0:02:04.1]} 14.
Nxe4 {[%clk 0:02:43.4]} 14... Bxh4 {[%clk 0:02:03.4]} 15. Qh5 {[%clk 0:02:44.3]}
15... Be7 {[%clk 0:01:54.1]} 16. Bd3 {[%clk 0:02:36.6]} 16... g6 {[%clk
0:01:04.5]} 17. Qh6 {[%clk 0:02:33.5]} 17... Bf5 {[%clk 0:00:49.8]} 18. Bg5
{[%clk 0:02:13.4]} 18... Bxe4 {[%clk 0:00:43.6]} 19. Rxe4 {[%clk 0:02:14.3]}
19... Bxg5 {[%clk 0:00:32.7]} 20. Qxg5 {[%clk 0:02:15.2]} 20... Qe7 {[%clk
0:00:33]} 21. Qg3 {[%clk 0:02:14.5]} 21... f5 {[%clk 0:00:31.5]} 22. Re2 {[%clk
0:02:13.5]} 22... e4 {[%clk 0:00:30.3]} 23. Bc4+ {[%clk 0:02:05.9]} 23... Kh8
{[%clk 0:00:29.8]} 24. Rd1 {[%clk 0:02:01.4]} 24... Rad8 {[%clk 0:00:29.1]} 25.
Rxd8 {[%clk 0:01:58.7]} 25... Rxd8 {[%clk 0:00:30]} 26. Qc3+ {[%clk 0:01:58.7]}
26... Qg7 {[%clk 0:00:28.7]} 27. Qxa5 {[%clk 0:01:59.2]} 27... Rd1+ {[%clk
0:00:25.3]} 28. Kh2 {[%clk 0:01:59.1]} 28... Qxb2 {[%clk 0:00:21.9]} 29. c3
{[%clk 0:01:55.7]} 29... Rh1+ {[%clk 0:00:05.3]} 30. Kxh1 {[%clk 0:01:54]} 30...
Qc1+ {[%clk 0:00:06.2]} 31. Kh2 {[%clk 0:01:54.3]} 31... Qf4+ {[%clk 0:00:06.7]}
32. g3 {[%clk 0:01:54]} 32... Qd6 {[%clk 0:00:07.2]} 33. Rd2 {[%clk 0:01:45]}
33... Qf6 {[%clk 0:00:04.9]} 34. Qd8 {[%clk 0:01:43.1]} 34... Qxd8 {[%clk
0:00:04.6]} 35. Rxd8 {[%clk 0:01:44]} 35... Kg7 {[%clk 0:00:05.3]} 36. Rb8
{[%clk 0:01:44.2]} 36... h5 {[%clk 0:00:02.5]} 37. Rxb7+ {[%clk 0:01:44.6]}
37... Kh6 {[%clk 0:00:02.9]} 38. a5 {[%clk 0:01:44.4]} 38... Nh7 {[%clk
0:00:02.9]} 39. Rxh7+ {[%clk 0:01:42.6]} 39... Kxh7 {[%clk 0:00:03.8]} 40. a6
{[%clk 0:01:43.2]} 1-0

[Event "*** Titled Tuesday Blitz"]
[Site "Chess.com"]
[Date "2020.04.28"]
[Round "3"]
[White "LimeInTheCoconut"]
[Black "GmSergioBarrientos"]
[Result "0-1"]
[WhiteElo "2398"]
[BlackElo "2603"]
[TimeControl "180+1"]
[EndTime "10:27:54 PDT"]
[Termination "GmSergioBarrientos won by resignation"]

1. g3 {[%clk 0:03:00.9]} 1... Nf6 {[%clk 0:02:58.6]} 2. Bg2 {[%clk 0:03:00.5]}
2... g6 {[%clk 0:02:57.7]} 3. d4 {[%clk 0:02:59.8]} 3... Bg7 {[%clk 0:02:58.6]}
4. e4 {[%clk 0:02:59.7]} 4... d6 {[%clk 0:02:57.7]} 5. Ne2 {[%clk 0:03:00]} 5...
O-O {[%clk 0:02:57.5]} 6. h3 {[%clk 0:02:59.5]} 6... e5 {[%clk 0:02:57.5]} 7.
Nbc3 {[%clk 0:02:57.2]} 7... Nc6 {[%clk 0:02:53.5]} 8. Be3 {[%clk 0:02:56.9]}
8... Re8 {[%clk 0:02:40.8]} 9. O-O {[%clk 0:02:54.9]} 9... exd4 {[%clk
0:02:37.1]} 10. Nxd4 {[%clk 0:02:55.8]} 10... Bd7 {[%clk 0:02:37.4]} 11. a4
{[%clk 0:02:52.2]} 11... Ne5 {[%clk 0:02:24.2]} 12. f4 {[%clk 0:02:43.8]} 12...
Nc4 {[%clk 0:02:22.9]} 13. Bc1 {[%clk 0:02:44.2]} 13... c5 {[%clk 0:02:10]} 14.
Nde2 {[%clk 0:02:42.8]} 14... Bc6 {[%clk 0:02:08.2]} 15. Qd3 {[%clk 0:02:33.3]}
15... Na5 {[%clk 0:01:52.5]} 16. g4 {[%clk 0:02:15.7]} 16... c4 {[%clk
0:01:48.1]} 17. Qe3 {[%clk 0:01:51]} 17... Nxe4 {[%clk 0:01:47.5]} 18. Nxe4
{[%clk 0:01:46.4]} 18... Bxe4 {[%clk 0:01:41.3]} 19. Bxe4 {[%clk 0:01:45.2]}
19... d5 {[%clk 0:01:41.6]} 20. Ng3 {[%clk 0:01:35.8]} 20... dxe4 {[%clk
0:01:40.3]} 21. Kg2 {[%clk 0:01:19.2]} 21... c3 {[%clk 0:01:26.9]} 22. b3 {[%clk
0:01:11]} 22... Nc6 {[%clk 0:01:19.5]} 23. f5 {[%clk 0:01:08.2]} 23... Nb4
{[%clk 0:01:15.1]} 24. Qe2 {[%clk 0:00:59.9]} 24... e3 {[%clk 0:01:12.8]} 25.
Ba3 {[%clk 0:00:48.2]} 25... Qd5+ {[%clk 0:01:10.7]} 26. Rf3 {[%clk 0:00:41]}
26... Nc6 {[%clk 0:01:04.8]} 27. Rd1 {[%clk 0:00:39.8]} 27... Nd4 {[%clk
0:01:04.1]} 28. Rxd4 {[%clk 0:00:21.6]} 28... Qxd4 {[%clk 0:01:03.8]} 29. fxg6
{[%clk 0:00:20.6]} 29... hxg6 {[%clk 0:01:03.6]} 0-1